fUST/lending_fUST_20250805
["ID","MTS","AMOUNT","RATE_DAILY","PERIOD"]
[377425956,1754407855639,-1763.44,0.00029041,2]
[377425957,1754407855648,-855.66,0.00029041,2]
[377425958,1754407855658,-707.6,0.00029041,2]
[377425959,1754407855668,-460.0,0.00029041,2]
[377425960,1754407855681,-702.16,0.00029041,2]
[377425961,1754407855700,-460.0,0.00029041,2]
[377425962,1754407855717,-460.0,0.00029041,2]
[377425963,1754407855738,-3546.88,0.00029041,2]
[377425964,1754407855758,-1063.01,0.00029041,2]
[377425965,1754407855775,-460.0,0.00029041,2]
[377425966,1754407855793,-460.0,0.00029041,2]
[377425967,1754407855807,-772.25,0.00029041,2]
[377425968,1754407855823,-963.83,0.00029041,2]
[377425969,1754407855843,-1413.03,0.00029041,2]
[377425970,1754407855865,-460.0,0.00029041,2]
[377425971,1754407855877,-460.0,0.00029041,2]
[377425972,1754407855895,-1306.51,0.00029041,2]
[377425973,1754407855911,-1014.88,0.00029041,2]
[377425974,1754407855928,-460.0,0.00029041,2]
[377425975,1754407855942,-460.0,0.00029041,2]
[377425976,1754407855958,-460.0,0.00029041,2]
[377425977,1754407855972,-460.0,0.00029041,2]
[377425978,1754407855987,-526.38056783,0.00029041,2]
[377425979,1754407856002,-460.0,0.00029041,2]
[377425980,1754407856017,-1500.0,0.00029068,5]
[377425981,1754407856031,-508.58,0.00029073,3]
[377425982,1754407856045,-460.0,0.00029075,2]
[377425983,1754407856060,-460.0,0.00029075,2]
[377425984,1754407856074,-460.0,0.00029075,2]
[377425985,1754407856089,-460.0,0.00029075,2]
[377425986,1754407856108,-298.72157157,0.00029075,2]
[377425987,1754407856123,-775.73,0.00029075,2]
[377425988,1754407856138,-472.87804332,0.00029075,2]
[377425989,1754407856153,-390.01451799,0.00029075,2]
[377425990,1754407856168,-460.0,0.00029075,2]
[377425991,1754407856183,-460.0,0.00029075,2]
[377425992,1754407856198,-460.0,0.00029075,2]
[377425993,1754407856212,-460.0,0.00029075,2]
[377425994,1754407856228,-460.0,0.00029075,2]
[377425995,1754407856242,-467.23943078,0.00029075,2]
[377425996,1754407856258,-460.0,0.00029075,2]
[377425997,1754407856273,-460.0,0.00029075,2]
[377425998,1754407856287,-460.0,0.00029075,2]
[377425999,1754407856301,-472.14,0.00029075,2]
[377426000,1754407856316,-460.0,0.00029075,2]
[377426001,1754407856330,-460.0,0.00029075,2]
[377426002,1754407856347,-460.0,0.00029075,2]
[377426003,1754407856362,-460.0,0.00029075,2]
[377426004,1754407856376,-331.78322267,0.00029076,2]
[377426005,1754407856391,-460.0,0.00029076,2]
[377426006,1754407856406,-460.0,0.00029076,2]
[377426007,1754407856506,-460.0,0.00029076,2]
[377426008,1754407856518,-588.25,0.00029076,2]
[377426009,1754407856528,-460.0,0.00029076,2]
[377426010,1754407856537,-645.07,0.00029076,2]
[377426011,1754407856547,-1387.65,0.00029076,2]
[377426012,1754407856556,-460.0,0.00029076,2]
[377426013,1754407856566,-1116.87,0.00029076,2]
[377426014,1754407856576,-460.0,0.00029076,2]
[377426015,1754407856585,-473.02787469,0.00029076,2]
[377426016,1754407856596,-1115.17,0.00029076,2]
[377426017,1754407856606,-1003.98,0.00029076,2]
[377426018,1754407856616,-151.0,0.00029076,7]
[377426019,1754407856625,-160.613908,0.00029076,7]
[377426020,1754407856635,-489.565294,0.00029076,7]
[377426021,1754407856645,-489.565294,0.00029076,7]
[377426022,1754407856654,-460.0,0.00029076,2]
[377426023,1754407856663,-460.0,0.00029076,2]
[377426024,1754407856672,-1682.57,0.00029076,2]
[377426025,1754407856681,-460.0,0.00029076,2]
[377426026,1754407856690,-460.0,0.00029082,2]
[377426027,1754407856700,-2462.17,0.00029082,2]
[377426028,1754407856709,-460.0,0.00029082,2]
[377426029,1754407856721,-460.0,0.00029082,2]
[377426030,1754407856730,-462.44223607,0.00029082,2]
[377426031,1754407856739,-500.0,0.00029082,2]
[377426032,1754407856749,-460.0,0.00029082,2]
[377426033,1754407856758,-460.0,0.00029082,2]
[377426034,1754407856768,-1115.02,0.00029082,2]
[377426035,1754407856777,-460.0,0.00029082,2]
[377426036,1754407856788,-460.0,0.00029082,2]
[377426037,1754407856797,-460.0,0.00029082,2]
[377426038,1754407856806,-152.916843,0.00029083,7]
[377426039,1754407856816,-151.0,0.00029083,7]
[377426040,1754407856826,-151.0,0.00029083,7]
[377426041,1754407856835,-19403.78983144,0.00029119,2]
[377426042,1754407856846,-460.0,0.00029144,2]
[377426043,1754407856855,-6096.88,0.00029144,2]
[377426044,1754407856865,-1651.28,0.00029144,2]
[377426045,1754407856874,-1045.52,0.00029144,2]
[377426046,1754407856884,-786.04,0.00029144,2]
[377426047,1754407856893,-460.0,0.00029144,2]
[377426048,1754407856903,-460.0,0.00029144,2]
[377426049,1754407856912,-1665.17,0.00029158,2]
[377426050,1754407856921,-1665.17,0.00029158,2]
[377426051,1754407856931,-420.0,0.00029177,2]
[377426052,1754407856940,-658.0,0.00029282,2]
[377426053,1754407856949,-151.0,0.00029282,7]
[377426054,1754407856958,-2534.15,0.00029282,2]
[377426055,1754407856967,-1046.7,0.00029282,2]
[377426056,1754407856977,-151.0,0.00029282,7]
[377426057,1754407856986,-151.0,0.00029282,7]
[377426058,1754407856996,-1584.39,0.00029282,2]
[377426059,1754407857005,-469.74,0.00029284,2]
[377426060,1754407857017,-460.0,0.00029284,2]
[377426061,1754407857028,-460.0,0.00029284,2]
[377426062,1754407857038,-460.0,0.00029284,2]
[377426063,1754407857048,-460.0,0.00029284,2]
[377426064,1754407857058,-460.0,0.00029284,2]
[377426065,1754407857067,-836.08,0.00029284,2]
[377426066,1754407857076,-460.0,0.00029284,2]
[377426067,1754407857087,-460.0,0.00029284,2]
[377426068,1754407857098,-1198.82,0.00029284,2]
[377426069,1754407857108,-495.61168537,0.00029284,2]
[377426070,1754407857117,-759.39,0.00029284,2]
[377426071,1754407857127,-2885.27,0.00029284,2]
[377426072,1754407857136,-689.77,0.00029284,2]
[377426073,1754407857146,-460.0,0.00029284,2]
[377426074,1754407857155,-460.0,0.00029284,2]
[377426075,1754407857165,-1367.26,0.00029284,2]
[377426076,1754407857174,-460.0,0.00029284,2]
[377426077,1754407857184,-1010.03,0.00029284,2]
[377426078,1754407857193,-1135.39,0.00029284,2]
[377426079,1754407857203,-460.0,0.00029284,2]
[377426080,1754407857213,-460.0,0.00029284,2]
[377426081,1754407857222,-2121.08,0.00029284,2]
[377426082,1754407857232,-466.73,0.00029284,2]
[377426083,1754407857241,-460.0,0.00029284,2]
[377426084,1754407857250,-460.0,0.00029284,2]
[377426085,1754407857260,-460.0,0.00029284,2]
[377426086,1754407857268,-495.79985782,0.00029284,2]
[377426087,1754407857278,-460.0,0.00029284,2]
[377426088,1754407857287,-460.0,0.00029284,2]
[377426089,1754407857296,-460.0,0.00029284,2]
[377426090,1754407857306,-460.0,0.00029284,2]
[377426091,1754407857316,-198.45109726,0.00029315,2]
[377426092,1754407857325,-460.0,0.00029315,2]
[377426093,1754407857338,-460.09256813,0.00029315,2]
[377426094,1754407857349,-669.1,0.00029315,2]
[377426095,1754407857359,-460.0,0.00029315,2]
[377426096,1754407857369,-460.0,0.00029315,2]
[377426097,1754407857379,-460.0,0.00029315,2]
[377426098,1754407857389,-360.46306678,0.00029315,2]
[377426099,1754407857398,-1909.8,0.00029315,2]
[377426100,1754407857407,-5587.66,0.00029315,2]
[377426101,1754407857417,-755.95,0.00029315,2]
[377426102,1754407857426,-735.68,0.00029315,2]
[377426103,1754407857435,-460.0,0.00029315,2]
[377426104,1754407857444,-460.0,0.00029315,2]
[377426105,1754407857453,-865.94,0.00029315,2]
[377426106,1754407857462,-489.14,0.00029315,2]
[377426107,1754407857472,-3828.19,0.00029315,2]
[377426108,1754407857481,-2646.3,0.00029315,2]
[377426109,1754407857491,-460.0,0.00029315,2]
[377426110,1754407857501,-460.0,0.00029315,2]
[377426111,1754407857510,-982.09,0.00029315,2]
[377426112,1754407857520,-1763.44,0.00029315,2]
[377426113,1754407857529,-855.66,0.00029315,2]
[377426114,1754407857538,-707.6,0.00029315,2]
[377426115,1754407857548,-460.0,0.00029315,2]
[377426116,1754407857557,-702.16,0.00029315,2]
[377426117,1754407857567,-460.0,0.00029315,2]
[377426118,1754407857576,-3546.88,0.00029315,2]
[377426119,1754407857586,-1063.01,0.00029315,2]
[377426120,1754407857596,-460.0,0.00029315,2]
[377426121,1754407857605,-365.41536188,0.00029315,2]
[377426122,1754407857615,-772.25,0.00029315,2]
[377426123,1754407857625,-963.83,0.00029315,2]
[377426124,1754407857634,-1413.03,0.00029315,2]
[377426125,1754407857644,-460.0,0.00029315,2]
[377426126,1754407857653,-460.0,0.00029315,2]
[377426127,1754407857662,-1306.51,0.00029315,2]
[377426128,1754407857672,-1014.88,0.00029315,2]
[377426129,1754407857681,-460.0,0.00029315,2]
[377426130,1754407857691,-460.0,0.00029315,2]
[377426131,1754407857700,-460.0,0.00029315,2]
[377426132,1754407857710,-460.0,0.00029315,2]
[377426133,1754407857719,-460.0,0.00029315,2]
[377426134,1754407857729,-460.0,0.00029349,2]
[377426135,1754407857739,-460.0,0.00029349,2]
[377426136,1754407857749,-460.0,0.00029349,2]
[377426137,1754407857758,-460.0,0.00029349,2]
[377426138,1754407857768,-775.73,0.00029349,2]
[377426139,1754407857778,-460.0,0.00029349,2]
[377426140,1754407857787,-460.0,0.00029349,2]
[377426141,1754407857796,-460.0,0.00029349,2]
[377426142,1754407857806,-460.0,0.00029349,2]
[377426143,1754407857815,-460.0,0.00029349,2]
[377426144,1754407857824,-460.0,0.00029349,2]
[377426145,1754407857834,-460.0,0.00029349,2]
[377426146,1754407857847,-472.14,0.00029349,2]
[377426147,1754407857857,-460.0,0.00029349,2]
[377426148,1754407857933,-473.60711005,0.00029349,2]
[377426149,1754407857944,-460.0,0.00029349,2]
[377426150,1754407857957,-460.0,0.0002935,2]
[377426151,1754407857966,-460.0,0.0002935,2]
[377426152,1754407857976,-588.25,0.0002935,2]
[377426153,1754407857986,-460.0,0.0002935,2]
[377426154,1754407857995,-645.07,0.0002935,2]
[377426155,1754407858004,-1387.65,0.0002935,2]
[377426156,1754407858015,-460.0,0.0002935,2]
[377426157,1754407858026,-1116.87,0.0002935,2]
[377426158,1754407858036,-460.0,0.0002935,2]
[377426159,1754407858045,-1115.17,0.0002935,2]
[377426160,1754407858055,-1003.98,0.0002935,2]
[377426161,1754407858065,-460.0,0.0002935,2]
[377426162,1754407858075,-460.0,0.0002935,2]
[377426163,1754407858084,-1682.57,0.0002935,2]
[377426164,1754407858095,-460.0,0.0002935,2]
[377426165,1754407858105,-460.0,0.00029356,2]
[377426166,1754407858114,-2462.17,0.00029356,2]
[377426167,1754407858123,-462.59557922,0.00029356,2]
[377426168,1754407858134,-460.0,0.00029356,2]
[377426169,1754407858143,-460.0,0.00029356,2]
[377426170,1754407858153,-1115.02,0.00029356,2]
[377426171,1754407858162,-460.0,0.00029356,2]
[377426172,1754407858172,-460.0,0.00029356,2]
[377426173,1754407858181,-460.0,0.00029356,2]
[377426174,1754407858190,-156.535649,0.00029376,20]
[377426175,1754407858199,-460.0,0.00029418,2]
[377426176,1754407858209,-6096.88,0.00029418,2]
[377426177,1754407858218,-1651.28,0.00029418,2]
[377426178,1754407858227,-1045.52,0.00029418,2]
[377426179,1754407858236,-173.06256244,0.00029418,2]
[377426180,1754407858385,-460.0,0.00027397,2]
[377426181,1754407858395,-612.97743756,0.00029418,2]
[377426182,1754407858404,-469.39878952,0.00029418,2]
[377426183,1754407858414,-460.0,0.00029418,2]
[377426184,1754407858423,-260.82377292,0.00029496,2]
[377426185,1754407858435,-99.17622708,0.00029496,2]
[377426186,1754407858444,-190.775,0.00029517,2]
[377426187,1754407858454,-500.0,0.0002952,5]
[377426188,1754407858463,-500.0,0.0002952,5]
[377426189,1754407858472,-658.0,0.00029556,2]
[377426190,1754407858481,-1642.3487729,0.00029556,2]
[377426191,1754407858565,-461.1022306,0.00027671,2]
[377426192,1754407858574,-111.2227694,0.00029556,2]
[377426193,1754407858605,-780.5784577,0.00029556,2]
[377426194,1754407858615,-1046.7,0.00029556,2]
[377426195,1754407858625,-1584.39,0.00029556,2]
[377426196,1754407858634,-469.74,0.00029558,2]
[377426197,1754407858643,-460.0,0.00029558,2]
[377426198,1754407858652,-460.0,0.00029558,2]
[377426199,1754407858662,-460.0,0.00029558,2]
[377426200,1754407858672,-836.08,0.00029558,2]
[377426201,1754407858682,-460.0,0.00029558,2]
[377426202,1754407858691,-460.0,0.00029558,2]
[377426203,1754407858701,-1198.82,0.00029558,2]
[377426204,1754407858710,-759.39,0.00029558,2]
[377426205,1754407858720,-2885.27,0.00029558,2]
[377426206,1754407858729,-689.77,0.00029558,2]
[377426207,1754407858739,-460.0,0.00029558,2]
[377426208,1754407858748,-460.0,0.00029558,2]
[377426209,1754407858758,-1367.26,0.00029558,2]
[377426210,1754407858767,-460.0,0.00029558,2]
[377426211,1754407858777,-1010.03,0.00029558,2]
[377426212,1754407858786,-1135.39,0.00029558,2]
[377426213,1754407858795,-506.75160546,0.00029558,2]
[377426214,1754407858805,-460.0,0.00029558,2]
[377426215,1754407858814,-2121.08,0.00029558,2]
[377426216,1754407858823,-466.73,0.00029558,2]
[377426217,1754407858833,-460.0,0.00029558,2]
[377426218,1754407858843,-460.0,0.00029558,2]
[377426219,1754407858853,-460.0,0.00029558,2]
[377426220,1754407858862,-460.0,0.00029558,2]
[377426221,1754407858872,-151.0,0.00029558,7]
[377426222,1754407858881,-460.0,0.00029558,2]
[377426223,1754407858891,-489.565294,0.00029558,7]
[377426224,1754407858900,-489.565294,0.00029558,7]
[377426225,1754407858909,-460.0,0.00029558,2]
[377426226,1754407858919,-460.0,0.00029558,2]
[377426227,1754407858929,-460.0,0.00029589,2]
[377426228,1754407858939,-669.1,0.00029589,2]
[377426229,1754407858948,-460.0,0.00029589,2]
[377426230,1754407858959,-460.0,0.00029589,2]
[377426231,1754407858970,-1909.8,0.00029589,2]
[377426232,1754407858980,-4646.98934885,0.00029589,2]
[377426233,1754407859383,-940.67065115,0.00029589,2]
[377426234,1754407859392,-755.95,0.00029589,2]
[377426235,1754407859402,-460.0,0.00029589,2]
[377426236,1754407859411,-460.0,0.00029589,2]
[377426237,1754407859421,-861.15852066,0.00029589,2]
[377426238,1754407859432,-4.78147934,0.00029589,2]
[377426239,1754407859442,-152.500133,0.00029589,7]
[377426240,1754407859451,-1315.30238625,0.00029589,2]
[377426243,1754407910543,1390.21391458,0.00026576,2]
[377426246,1754408075254,241.841915,0.00026277,2]
[377426247,1754408189036,150.5,0.00027904,120]
[377426248,1754408242858,213.67682507,0.00025205,2]
[377426249,1754408242953,213.67682507,0.00025205,2]
[377426250,1754408243216,213.67682507,0.00025205,2]
[377426251,1754408270995,165.692301,0.00026234,2]
[377426252,1754408425532,239.368656,0.00013699,2]
[377426253,1754408425755,239.368656,0.00020187,2]
[377426256,1754408460517,400.0,0.00027397,120]
[377426257,1754408460833,400.0,0.00030137,120]
[377426258,1754408479410,277.23,0.00026234,7]
[377426259,1754408518312,18437.30991179,0.00025899,2]
[377426260,1754408518339,6462.69008821,0.00025899,2]
[377426261,1754408528573,1157.66099588,0.00026,2]
[377426262,1754408551981,246.43,0.00026,7]
[377426263,1754408552706,246.43,0.00026563,7]
[377426265,1754408578604,1229.22,0.00030137,120]
[377426266,1754408620006,191.67,0.00025899,7]
[377426267,1754408620446,191.67,0.00026474,7]
[377426269,1754408691025,11503.44891591,0.0002593,2]
[377426270,1754408691051,2196.12899829,0.0002593,2]
[377426271,1754408698824,3931.72291947,0.00026577,2]
[377426272,1754408769268,400.0,0.00027397,120]
[377426273,1754408769671,400.0,0.00030137,120]
[377426275,1754408838975,874.8160173,0.00025949,2]
[377426276,1754408883952,523.22775741,0.00024477,2]
[377426277,1754408908670,150.5,0.00027277,120]
[377426278,1754408909142,150.5,0.00027267,120]
[377426291,1754409032874,-239.368656,0.00026676,2]
[377426293,1754409032885,-160.15683092,0.00026777,2]
[377426295,1754409032895,-2047.25824541,0.00026877,2]
[377426298,1754409032906,-1200.0,0.00026879,2]
[377426300,1754409032915,-1727.95151294,0.0002688,2]
[377426421,1754409038538,-1826.67361546,0.0002688,2]
[377426424,1754409038548,-27.02638238,0.00026961,2]
[377426426,1754409038561,-272.97361762,0.00026961,2]
[377426428,1754409038571,-560.0,0.00026962,10]
[377426430,1754409038580,-539.97,0.00026962,10]
[377426432,1754409038589,-281.7,0.0002697,3]
[377426434,1754409038598,-845.1,0.0002697,3]
[377426436,1754409038608,-119.71867722,0.0002697,2]
[377426438,1754409038619,-51422.34286928,0.0002697,2]
[377426440,1754409038630,-1975.15761583,0.0002697,2]
[377426442,1754409038640,-500.0,0.00026972,2]
[377426445,1754409038649,-362.68120526,0.00026972,2]
[377426448,1754409038659,-500.0,0.00026972,2]
[377426451,1754409038668,-500.0,0.00026972,2]
[377426454,1754409038678,-597.7814273,0.00026972,2]
[377426456,1754409038687,-500.0,0.00026972,2]
[377426458,1754409038696,-500.0,0.00026972,2]
[377426472,1754409038817,-500.0,0.00026972,2]
[377426474,1754409038828,-500.0,0.00026972,2]
[377426476,1754409038837,-500.0,0.00026972,2]
[377426478,1754409038848,-500.0,0.00026972,2]
[377426480,1754409038857,-500.0,0.00026972,2]
[377426482,1754409038866,-500.0,0.00026972,2]
[377426484,1754409038875,-500.0,0.00026972,2]
[377426486,1754409038885,-500.0,0.00026972,2]
[377426488,1754409038894,-304.25681926,0.00026972,2]
[377426490,1754409038903,-500.0,0.00026972,2]
[377426492,1754409038913,-500.0,0.00026972,2]
[377426494,1754409038922,-500.0,0.00026972,2]
[377426496,1754409038931,-500.0,0.00026972,2]
[377426498,1754409038941,-500.0,0.00026972,2]
[377426500,1754409038950,-500.0,0.00026972,2]
[377426502,1754409038960,-500.0,0.00026972,2]
[377426504,1754409038969,-500.0,0.00026972,2]
[377426506,1754409038979,-500.0,0.00026972,2]
[377426508,1754409038989,-500.0,0.00026972,2]
[377426510,1754409038999,-500.0,0.00026972,2]
[377426512,1754409039008,-500.0,0.00026972,2]
[377426514,1754409039019,-500.0,0.00026972,2]
[377426516,1754409039028,-500.0,0.00026972,2]
[377426518,1754409039038,-159.88743428,0.00026972,2]
[377426520,1754409039047,-500.0,0.00026972,2]
[377426522,1754409039057,-500.0,0.00026972,2]
[377426524,1754409039067,-500.0,0.00026972,2]
[377426526,1754409039076,-500.0,0.00026972,2]
[377426528,1754409039085,-500.0,0.00026972,2]
[377426530,1754409039098,-500.0,0.00026972,2]
[377426532,1754409039118,-500.0,0.00026972,2]
[377426534,1754409039129,-500.0,0.00026972,2]
[377426536,1754409039139,-500.0,0.00026972,2]
[377426538,1754409039148,-300.0,0.00026972,2]
[377426540,1754409039159,-500.0,0.00026972,2]
[377426542,1754409039168,-500.0,0.00026972,2]
[377426545,1754409039178,-500.0,0.00026972,2]
[377426547,1754409039187,-500.0,0.00026972,2]
[377426549,1754409039198,-500.0,0.00026972,2]
[377426551,1754409039207,-500.0,0.00026972,2]
[377426553,1754409039217,-500.0,0.00026972,2]
[377426555,1754409039227,-500.0,0.00026972,2]
[377426557,1754409039236,-500.0,0.00026972,2]
[377426559,1754409039247,-500.0,0.00026972,2]
[377426561,1754409039257,-500.0,0.00026972,2]
[377426563,1754409039267,-500.0,0.00026972,2]
[377426565,1754409039277,-500.0,0.00026972,2]
[377426567,1754409039286,-500.0,0.00026972,2]
[377426569,1754409039296,-500.0,0.00026972,2]
[377426571,1754409039306,-500.0,0.00026972,2]
[377426573,1754409039316,-500.0,0.00026972,2]
[377426575,1754409039325,-500.0,0.00026972,2]
[377426577,1754409039335,-564.81076015,0.00026972,2]
[377426579,1754409039347,-500.0,0.00026972,2]
[377426581,1754409039356,-500.0,0.00026972,2]
[377426583,1754409039366,-500.0,0.00026972,2]
[377426585,1754409039375,-500.0,0.00026972,2]
[377426587,1754409039386,-500.0,0.00026972,2]
[377426589,1754409039395,-500.0,0.00026972,2]
[377426591,1754409039404,-500.0,0.00026972,2]
[377426593,1754409039414,-500.0,0.00026972,2]
[377426595,1754409039423,-334.37793544,0.00026972,2]
[377426597,1754409039434,-500.0,0.00026972,2]
[377426599,1754409039444,-500.0,0.00026972,2]
[377426601,1754409039454,-500.0,0.00026972,2]
[377426603,1754409039464,-500.0,0.00026972,2]
[377426605,1754409039473,-500.0,0.00026972,2]
[377426607,1754409039483,-500.0,0.00026972,2]
[377426609,1754409039492,-500.0,0.00026972,2]
[377426611,1754409039501,-500.0,0.00026972,2]
[377426613,1754409039511,-500.0,0.00026972,2]
[377426615,1754409039521,-500.0,0.00026972,2]
[377426617,1754409039530,-500.0,0.00026972,2]
[377426619,1754409039540,-500.0,0.00026972,2]
[377426621,1754409039549,-500.0,0.00026972,2]
[377426623,1754409039559,-500.0,0.00026972,2]
[377426625,1754409039569,-500.0,0.00026972,2]
[377426627,1754409039579,-500.0,0.00026972,2]
[377426629,1754409039588,-500.0,0.00026972,2]
[377426631,1754409039598,-500.0,0.00026972,2]
[377426633,1754409039608,-500.0,0.00026972,2]
[377426635,1754409039617,-500.0,0.00026972,2]
[377426637,1754409039627,-500.0,0.00026972,2]
[377426639,1754409039636,-648.55260164,0.00026972,2]
[377426641,1754409039646,-500.0,0.00026972,2]
[377426643,1754409039655,-500.0,0.00026972,2]
[377426645,1754409039665,-500.0,0.00026972,2]
[377426647,1754409039675,-500.0,0.00026972,2]
[377426649,1754409039684,-500.0,0.00026972,2]
[377426651,1754409039694,-500.0,0.00026972,2]
[377426653,1754409039703,-500.0,0.00026972,2]
[377426655,1754409039712,-500.0,0.00026972,2]
[377426657,1754409039722,-500.0,0.00026972,2]
[377426659,1754409039732,-500.0,0.00026972,2]
[377426661,1754409039742,-500.0,0.00026972,2]
[377426663,1754409039751,-500.0,0.00026972,2]
[377426665,1754409039760,-500.0,0.00026972,2]
[377426667,1754409039770,-500.0,0.00026972,2]
[377426669,1754409039780,-500.0,0.00026972,2]
[377426671,1754409039789,-500.0,0.00026972,2]
[377426673,1754409039799,-508.76537381,0.00026972,2]
[377426675,1754409039808,-500.0,0.00026972,2]
[377426677,1754409039819,-500.0,0.00026972,2]
[377426679,1754409039829,-500.0,0.00026972,2]
[377426681,1754409039838,-500.0,0.00026972,2]
[377426684,1754409039849,-500.0,0.00026972,2]
[377426686,1754409039858,-500.0,0.00026972,2]
[377426688,1754409039868,-500.0,0.00026972,2]
[377426690,1754409039878,-500.0,0.00026972,2]
[377426692,1754409039887,-500.0,0.00026972,2]
[377426694,1754409039896,-500.0,0.00026972,2]
[377426696,1754409039907,-500.0,0.00026972,2]
[377426698,1754409039916,-500.0,0.00026972,2]
[377426700,1754409039926,-500.0,0.00026972,2]
[377426702,1754409039935,-183.29684134,0.00026972,2]
[377426704,1754409039944,-500.0,0.00026972,2]
[377426706,1754409039954,-500.0,0.00026972,2]
[377426708,1754409039963,-500.0,0.00026972,2]
[377426710,1754409039972,-500.0,0.00026972,2]
[377426712,1754409039982,-500.0,0.00026972,2]
[377426714,1754409039993,-500.0,0.00026972,2]
[377426716,1754409040002,-500.0,0.00026972,2]
[377426718,1754409040012,-500.0,0.00026972,2]
[377426720,1754409040021,-500.0,0.00026972,2]
[377426722,1754409040031,-500.0,0.00026972,2]
[377426724,1754409040040,-500.0,0.00026972,2]
[377426726,1754409040050,-500.0,0.00026972,2]
[377426728,1754409040060,-500.0,0.00026972,2]
[377426730,1754409040071,-500.0,0.00026972,2]
[377426732,1754409040080,-500.0,0.00026972,2]
[377426734,1754409040090,-500.0,0.00026972,2]
[377426736,1754409040099,-500.0,0.00026972,2]
[377426738,1754409040108,-500.0,0.00026972,2]
[377426741,1754409040118,-500.0,0.00026972,2]
[377426743,1754409040127,-500.0,0.00026972,2]
[377426745,1754409040137,-500.0,0.00026972,2]
[377426749,1754409040147,-500.0,0.00026972,2]
[377426751,1754409040156,-500.0,0.00026972,2]
[377426753,1754409040166,-500.0,0.00026972,2]
[377426755,1754409040175,-500.0,0.00026972,2]
[377426757,1754409040184,-500.0,0.00026972,2]
[377426759,1754409040194,-500.0,0.00026972,2]
[377426761,1754409040203,-500.0,0.00026972,2]
[377426763,1754409040212,-500.0,0.00026972,2]
[377426765,1754409040222,-500.0,0.00026972,2]
[377426767,1754409040231,-500.0,0.00026972,2]
[377426769,1754409040242,-500.0,0.00026972,2]
[377426771,1754409040251,-500.0,0.00026972,2]
[377426773,1754409040260,-500.0,0.00026972,2]
[377426776,1754409040269,-500.0,0.00026972,2]
[377426778,1754409040279,-500.0,0.00026972,2]
[377426780,1754409040289,-500.0,0.00026972,2]
[377426782,1754409040298,-234.55702459,0.00026972,2]
[377426783,1754409040308,-500.0,0.00026972,2]
[377426784,1754409040319,-500.0,0.00026972,2]
[377426785,1754409040329,-500.0,0.00026972,2]
[377426786,1754409040339,-500.0,0.00026972,2]
[377426787,1754409040352,-500.0,0.00026972,2]
[377426788,1754409040362,-500.0,0.00026972,2]
[377426789,1754409040372,-500.0,0.00026972,2]
[377426790,1754409040382,-500.0,0.00026972,2]
[377426791,1754409040393,-500.0,0.00026972,2]
[377426792,1754409040403,-500.0,0.00026972,2]
[377426793,1754409040412,-500.0,0.00026972,2]